fUST/lending_fUST_20250522
["ID","MTS","AMOUNT","RATE_DAILY","PERIOD"]
[361906248,1747881035990,-430.0,0.00021917,2]
[361906249,1747881035999,-438.65391206,0.00021917,2]
[361906250,1747881036009,-430.0,0.00021917,2]
[361906251,1747881036019,-430.0,0.00021917,2]
[361906252,1747881036028,-431.80831513,0.00021917,2]
[361906253,1747881036038,-430.0,0.00021917,2]
[361906254,1747881036047,-430.0,0.00021917,2]
[361906255,1747881036056,-430.0,0.00021917,2]
[361906256,1747881036066,-1371.72,0.00021917,2]
[361906257,1747881036075,-430.0,0.00021917,2]
[361906258,1747881036085,-430.0,0.00021917,2]
[361906259,1747881036094,-430.0,0.00021917,2]
[361906260,1747881036104,-430.0,0.00021917,2]
[361906261,1747881036114,-430.0,0.00021917,2]
[361906262,1747881036124,-430.0,0.00021917,2]
[361906263,1747881036134,-430.0,0.00021917,2]
[361906264,1747881036144,-430.0,0.00021917,2]
[361906265,1747881036153,-430.0,0.00021917,2]
[361906266,1747881036163,-430.0,0.00021917,2]
[361906267,1747881036172,-430.0,0.00021917,2]
[361906268,1747881036182,-430.0,0.00021917,2]
[361906269,1747881036191,-430.0,0.00021917,2]
[361906270,1747881036201,-430.0,0.00021917,2]
[361906271,1747881036210,-430.0,0.00021917,2]
[361906272,1747881036220,-430.0,0.00021917,2]
[361906273,1747881036230,-431.5959589,0.00021917,2]
[361906274,1747881036239,-430.0,0.00021917,2]
[361906275,1747881036248,-430.99527107,0.00021917,2]
[361906276,1747881036258,-430.0,0.00021917,2]
[361906277,1747881036267,-430.93444454,0.00021917,2]
[361906278,1747881036277,-402.42181456,0.00021917,2]
[361906279,1747881036287,-430.0,0.00021917,2]
[361906280,1747881036297,-430.0,0.00021917,2]
[361906281,1747881036306,-430.0,0.00021917,2]
[361906282,1747881036316,-430.0,0.00021917,2]
[361906283,1747881036325,-430.0,0.00021917,2]
[361906284,1747881036334,-430.0,0.00021917,2]
[361906285,1747881036345,-430.0,0.00021917,2]
[361906286,1747881036355,-430.0,0.00021917,2]
[361906287,1747881036364,-432.73104631,0.00021917,2]
[361906288,1747881036374,-477.76,0.00021917,2]
[361906289,1747881036383,-401.73814643,0.00021917,2]
[361906290,1747881036393,-430.0,0.00021917,2]
[361906291,1747881036402,-402.79834797,0.00021917,2]
[361906292,1747881036412,-430.0,0.00021917,2]
[361906293,1747881036422,-312.29740823,0.00021917,2]
[361906294,1747881036431,-430.0,0.00021917,2]
[361906295,1747881036441,-430.0,0.00021917,2]
[361906296,1747881036450,-552.25,0.00021917,2]
[361906297,1747881036459,-430.0,0.00021917,2]
[361906298,1747881036469,-430.0,0.00021917,2]
[361906299,1747881036478,-496.36,0.00021917,2]
[361906300,1747881036487,-527.16,0.00021917,2]
[361906301,1747881036497,-430.0,0.00021917,2]
[361906302,1747881036506,-435.22464224,0.00021917,2]
[361906303,1747881036515,-430.0,0.00021917,2]
[361906304,1747881036524,-222.2149244,0.00021917,2]
[361906305,1747881036535,-430.0,0.00021917,2]
[361906306,1747881036545,-430.0,0.00021917,2]
[361906307,1747881036554,-430.0,0.00021917,2]
[361906308,1747881036564,-318.06067036,0.00021917,2]
[361906309,1747881036573,-430.0,0.00021917,2]
[361906310,1747881036582,-430.0,0.00021917,2]
[361906311,1747881036592,-438.97898962,0.00021917,2]
[361906312,1747881036601,-430.0,0.00021917,2]
[361906313,1747881036610,-430.0,0.00021917,2]
[361906314,1747881036620,-430.0,0.00021917,2]
[361906315,1747881036633,-430.0,0.00021917,2]
[361906316,1747881036643,-158.29723968,0.00021917,2]
[361906317,1747881036652,-500.0,0.00021917,2]
[361906318,1747881036663,-430.0,0.00021917,2]
[361906319,1747881036672,-430.0,0.00021917,2]
[361906320,1747881036681,-430.0,0.00021917,2]
[361906321,1747881036691,-471.4949494,0.00021917,2]
[361906322,1747881036700,-430.0,0.00021917,2]
[361906323,1747881036710,-430.0,0.00021917,2]
[361906324,1747881036721,-430.0,0.00021917,2]
[361906325,1747881036730,-372.05185442,0.00021917,2]
[361906326,1747881036739,-430.0,0.00021917,2]
[361906327,1747881036749,-431.37799879,0.00021917,2]
[361906328,1747881036758,-430.0,0.00021917,2]
[361906329,1747881036767,-431.19025986,0.00021917,2]
[361906330,1747881036779,-430.0,0.00021917,2]
[361906331,1747881036789,-430.0,0.00021917,2]
[361906332,1747881036798,-430.0,0.00021917,2]
[361906333,1747881036807,-430.0,0.00021917,2]
[361906334,1747881036817,-430.0,0.00021917,2]
[361906335,1747881036833,-430.0,0.00021917,2]
[361906336,1747881036850,-430.0,0.00021917,2]
[361906337,1747881036865,-408.77273739,0.00021917,2]
[361906338,1747881036877,-437.99190724,0.00021917,2]
[361906339,1747881036890,-430.0,0.00021917,2]
[361906340,1747881036908,-436.63027694,0.00021917,2]
[361906341,1747881036922,-430.0,0.00021917,2]
[361906342,1747881036935,-430.0,0.00021917,2]
[361906343,1747881036950,-500.0,0.00022,5]
[361906344,1747881036963,-1518.01071928,0.00022072,6]
[361906345,1747881036977,-178.19745805,0.000221,2]
[361906346,1747881036993,-163.79697453,0.0002219,2]
[361906347,1747881037007,-430.0,0.00022191,2]
[361906348,1747881037020,-430.0,0.00022191,2]
[361906349,1747881037033,-430.0,0.00022191,2]
[361906350,1747881037046,-430.0,0.00022191,2]
[361906351,1747881037060,-205.9689398,0.00022191,2]
[361906352,1747881037075,-430.0,0.00022191,2]
[361906353,1747881037088,-430.0,0.00022191,2]
[361906354,1747881037100,-430.0,0.00022191,2]
[361906355,1747881037111,-430.0,0.00022191,2]
[361906356,1747881037124,-461.59728236,0.00022191,2]
[361906357,1747881037136,-430.0,0.00022191,2]
[361906358,1747881037150,-480.79141637,0.00022191,2]
[361906359,1747881037164,-430.0,0.00022191,2]
[361906360,1747881037177,-430.0,0.00022191,2]
[361906361,1747881037193,-488.33342632,0.00022191,2]
[361906362,1747881037208,-430.0,0.00022191,2]
[361906363,1747881037223,-430.0,0.00022191,2]
[361906364,1747881037237,-430.0,0.00022191,2]
[361906365,1747881037248,-430.0,0.00022191,2]
[361906366,1747881037259,-487.98038042,0.00022191,2]
[361906367,1747881037270,-456.93423085,0.00022191,2]
[361906368,1747881037285,-430.0,0.00022191,2]
[361906369,1747881037300,-573.19,0.00022191,2]
[361906370,1747881037314,-440.51550411,0.00022191,2]
[361906371,1747881037326,-281.64343063,0.00022191,2]
[361906372,1747881037337,-430.0,0.00022191,2]
[361906373,1747881037349,-188.94626432,0.00022191,2]
[361906374,1747881037362,-430.0,0.00022191,2]
[361906375,1747881037375,-430.0,0.00022191,2]
[361906377,1747881037387,-444.28786959,0.00022191,2]
[361906379,1747881037397,-430.0,0.00022191,2]
[361906381,1747881037410,-463.36316126,0.00022191,2]
[361906383,1747881037421,-257.1379541,0.00022191,2]
[361906385,1747881037433,-441.42446355,0.00022191,2]
[361906388,1747881037445,-430.0,0.00022191,2]
[361906390,1747881037458,-430.0,0.00022191,2]
[361906392,1747881037469,-430.0,0.00022191,2]
[361906394,1747881037481,-430.0,0.00022191,2]
[361906395,1747881037492,-430.0,0.00022191,2]
[361906396,1747881037504,-489.82661721,0.00022191,2]
[361906397,1747881037516,-430.0,0.00022191,2]
[361906398,1747881037529,-488.25133801,0.00022191,2]
[361906399,1747881037541,-480.28454915,0.00022191,2]
[361906400,1747881037553,-430.0,0.00022191,2]
[361906401,1747881037566,-430.0,0.00022191,2]
[361906402,1747881037579,-449.7,0.00022191,2]
[361906403,1747881037591,-430.0,0.00022191,2]
[361906404,1747881037605,-430.0,0.00022191,2]
[361906405,1747881037618,-238.81466585,0.00022191,2]
[361906406,1747881037635,-504.82,0.00022191,2]
[361906407,1747881037647,-430.0,0.00022191,2]
[361906408,1747881037660,-430.0,0.00022191,2]
[361906409,1747881037673,-544.47,0.00022191,2]
[361906410,1747881037685,-565.47849537,0.00022191,2]
[361906411,1747881037697,-430.0,0.00022191,2]
[361906412,1747881037711,-356.81100998,0.00022191,2]
[361906413,1747881037723,-430.0,0.00022191,2]
[361906416,1747881037735,-430.0,0.00022191,2]
[361906418,1747881037748,-430.0,0.00022191,2]
[361906420,1747881037760,-430.0,0.00022191,2]
[361906421,1747881037773,-311.62,0.00022191,2]
[361906422,1747881037787,-430.0,0.00022191,2]
[361906424,1747881037799,-430.0,0.00022191,2]
[361906426,1747881037811,-430.0,0.00022191,2]
[361906429,1747881037823,-430.0,0.00022191,2]
[361906431,1747881037836,-430.0,0.00022191,2]
[361906433,1747881037848,-430.0,0.00022191,2]
[361906436,1747881037860,-430.0,0.00022191,2]
[361906438,1747881037873,-430.0,0.00022191,2]
[361906440,1747881037884,-481.77063268,0.00022191,2]
[361906442,1747881037896,-430.0,0.00022191,2]
[361906444,1747881037908,-430.0,0.00022191,2]
[361906447,1747881037920,-430.0,0.00022191,2]
[361906449,1747881037932,-533.78,0.00022191,2]
[361906451,1747881037945,-438.33628236,0.00022191,2]
[361906454,1747881037958,-430.0,0.00022191,2]
[361906456,1747881037971,-430.0,0.00022191,2]
[361906458,1747881037983,-442.45,0.00022191,2]
[361906460,1747881037995,-430.0,0.00022191,2]
[361906462,1747881038008,-430.0,0.00022191,2]
[361906463,1747881038020,-502.25887729,0.00022191,2]
[361906464,1747881038034,-442.54363135,0.00022191,2]
[361906465,1747881038047,-430.0,0.00022191,2]
[361906466,1747881038060,-538.51574923,0.00022191,2]
[361906467,1747881038073,-430.0,0.00022191,2]
[361906468,1747881038085,-430.0,0.00022191,2]
[361906469,1747881038098,-430.0,0.00022191,2]
[361906470,1747881038109,-532.47391769,0.00022191,2]
[361906471,1747881038119,-430.0,0.00022191,2]
[361906473,1747881038299,-430.0,0.00022191,2]
[361906474,1747881038323,-430.0,0.00022191,2]
[361906475,1747881038332,-471.35,0.00022191,2]
[361906476,1747881038342,-430.0,0.00022191,2]
[361906477,1747881038351,-430.0,0.00022191,2]
[361906478,1747881038361,-278.52904426,0.00022191,2]
[361906479,1747881038370,-430.0,0.00022191,2]
[361906480,1747881038380,-430.0,0.00022191,2]
[361906481,1747881038389,-204.4665943,0.00022191,2]
[361906482,1747881038399,-430.0,0.00022191,2]
[361906483,1747881038408,-347.04051909,0.00022191,2]
[361906484,1747881038418,-430.0,0.00022191,2]
[361906485,1747881038427,-430.0,0.00022191,2]
[361906486,1747881038436,-430.0,0.00022191,2]
[361906487,1747881038445,-430.0,0.00022191,2]
[361906488,1747881038454,-430.0,0.00022191,2]
[361906489,1747881038464,-238.28,0.00022191,2]
[361906490,1747881038473,-430.0,0.00022191,2]
[361906491,1747881038482,-430.0,0.00022191,2]
[361906492,1747881038491,-430.0,0.00022191,2]
[361906493,1747881038500,-460.04863825,0.00022191,2]
[361906494,1747881038509,-430.0,0.00022191,2]
[361906495,1747881038518,-430.0,0.00022191,2]
[361906496,1747881038529,-483.66,0.00022191,2]
[361906497,1747881038538,-293.42601162,0.00022191,2]
[361906498,1747881038547,-430.0,0.00022191,2]
[361906499,1747881038557,-232.06,0.00022191,2]
[361906500,1747881038566,-430.0,0.00022191,2]
[361906501,1747881038575,-430.0,0.00022191,2]
[361906502,1747881038584,-430.0,0.00022191,2]
[361906503,1747881038594,-430.0,0.00022191,2]
[361906504,1747881038603,-430.0,0.00022191,2]
[361906505,1747881038613,-430.0,0.00022191,2]
[361906506,1747881038622,-201.23,0.00022191,2]
[361906507,1747881038635,-340.11,0.00022191,2]
[361906508,1747881038644,-430.0,0.00022191,2]
[361906509,1747881038653,-430.0,0.00022191,2]
[361906510,1747881038662,-430.0,0.00022191,2]
[361906511,1747881038673,-961.73,0.00022191,2]
[361906512,1747881038682,-430.0,0.00022191,2]
[361906513,1747881038691,-430.0,0.00022191,2]
[361906514,1747881038702,-430.0,0.00022191,2]
[361906515,1747881038712,-1398.21,0.00022191,2]
[361906516,1747881038722,-430.0,0.00022191,2]
[361906517,1747881038731,-430.0,0.00022191,2]
[361906518,1747881038741,-499.65,0.00022191,2]
[361906519,1747881038750,-442.52566844,0.00022191,2]
[361906520,1747881038759,-433.99,0.00022191,2]
[361906521,1747881038769,-1170.48,0.00022191,2]
[361906522,1747881038779,-414.0,0.00022191,2]
[361906523,1747881038789,-430.0,0.00022191,2]
[361906524,1747881038799,-430.0,0.00022191,2]
[361906525,1747881038808,-430.0,0.00022191,2]
[361906526,1747881038818,-290.42,0.00022191,2]
[361906527,1747881038827,-430.0,0.00022191,2]
[361906528,1747881038837,-430.0,0.00022191,2]
[361906529,1747881038847,-430.0,0.00022191,2]
[361906530,1747881038857,-419.38292798,0.00022191,2]
[361906531,1747881038867,-430.0,0.00022191,2]
[361906532,1747881038876,-430.0,0.00022191,2]
[361906533,1747881038885,-430.0,0.00022191,2]
[361906534,1747881038894,-430.0,0.00022191,2]
[361906535,1747881038903,-430.0,0.00022191,2]
[361906536,1747881038912,-430.0,0.00022191,2]
[361906537,1747881038921,-430.0,0.00022191,2]
[361906538,1747881038931,-430.0,0.00022191,2]
[361906539,1747881038941,-861.58,0.00022191,2]
[361906540,1747881038950,-430.0,0.00022191,2]
[361906541,1747881038960,-1148.21,0.00022191,2]
[361906542,1747881038969,-430.0,0.00022191,2]
[361906543,1747881038981,-574.83,0.00022191,2]
[361906544,1747881038991,-430.0,0.00022191,2]
[361906545,1747881039001,-430.0,0.00022191,2]
[361906546,1747881039011,-494.98,0.00022191,2]
[361906547,1747881039020,-430.0,0.00022191,2]
[361906548,1747881039030,-430.0,0.00022191,2]
[361906549,1747881039039,-430.0,0.00022191,2]
[361906550,1747881039048,-430.0,0.00022191,2]
[361906551,1747881039058,-430.0,0.00022191,2]
[361906552,1747881039067,-430.0,0.00022191,2]
[361906553,1747881039077,-430.0,0.00022191,2]
[361906554,1747881039087,-430.0,0.00022191,2]
[361906555,1747881039097,-430.0,0.00022191,2]
[361906556,1747881039106,-430.0,0.00022191,2]
[361906557,1747881039115,-430.0,0.00022191,2]
[361906558,1747881039124,-1371.72,0.00022191,2]
[361906559,1747881039134,-430.0,0.00022191,2]
[361906560,1747881039146,-430.0,0.00022191,2]
[361906561,1747881039156,-430.0,0.00022191,2]
[361906562,1747881039168,-430.0,0.00022191,2]
[361906563,1747881039179,-454.7,0.00022191,2]
[361906564,1747881039189,-183.25,0.00022191,2]
[361906565,1747881039199,-430.0,0.00022191,2]
[361906566,1747881039209,-430.0,0.00022191,2]
[361906567,1747881039219,-430.0,0.00022191,2]
[361906568,1747881039230,-450.48,0.00022191,2]
[361906569,1747881039239,-174.24,0.00022191,2]
[361906570,1747881039249,-430.0,0.00022191,2]
[361906571,1747881039260,-430.0,0.00022191,2]
[361906572,1747881039269,-430.0,0.00022191,2]
[361906573,1747881039278,-430.0,0.00022191,2]
[361906574,1747881039288,-271.25,0.00022191,2]
[361906575,1747881039298,-430.0,0.00022191,2]
[361906577,1747881039308,-477.76,0.00022191,2]
[361906579,1747881039317,-430.0,0.00022191,2]
[361906580,1747881039327,-430.0,0.00022191,2]
[361906581,1747881039337,-430.0,0.00022191,2]
[361906582,1747881039347,-236.06,0.00022191,2]
[361906583,1747881039357,-552.25,0.00022191,2]
[361906584,1747881039366,-368.18,0.00022191,2]
[361906585,1747881039376,-496.36,0.00022191,2]
[361906586,1747881039386,-430.0,0.00022191,2]
[361906587,1747881039395,-505.68,0.00022191,2]
[361906588,1747881039405,-430.0,0.00022191,2]
[361906590,1747881039414,-430.0,0.00022191,2]
[361906591,1747881039424,-423.51459779,0.00022191,2]
[361906592,1747881039433,-430.0,0.00022191,2]
[361906593,1747881039443,-430.0,0.00022191,2]
[361906594,1747881039452,-428.46,0.00022191,2]
[361906595,1747881039461,-430.0,0.00022191,2]
[361906597,1747881039471,-430.0,0.00022191,2]
[361906599,1747881039481,-400.62222794,0.00022191,2]
[361906601,1747881039490,-430.0,0.00022191,2]
[361906602,1747881039501,-435.88372022,0.00022191,2]
[361906603,1747881039511,-430.0,0.00022191,2]
[361906605,1747881039520,-430.0,0.00022191,2]
[361906606,1747881039530,-348.25576981,0.00022191,2]
[361906607,1747881039539,-430.0,0.00022191,2]
[361906608,1747881039550,-430.0,0.00022191,2]
[361906609,1747881039560,-195.18,0.00022191,2]
[361906610,1747881039570,-430.0,0.00022191,2]
[361906611,1747881039579,-430.0,0.00022191,2]
[361906612,1747881039589,-433.44067554,0.00022191,2]
[361906613,1747881039599,-430.0,0.00022191,2]
[361906614,1747881039609,-430.0,0.00022191,2]
[361906615,1747881039619,-430.0,0.00022191,2]
[361906616,1747881039632,-1518.01071928,0.00022245,6]
[361906617,1747881039642,-1518.01071928,0.00022417,7]
[361906618,1747881039652,-440.50606172,0.00022465,2]
[361906619,1747881039662,-499.74264924,0.00022465,2]
[361906620,1747881039674,-436.32522563,0.00022465,2]
[361906621,1747881039685,-328.94,0.00022465,2]
[361906623,1747881039694,-430.0,0.00022465,2]
[361906625,1747881039706,-200.82,0.00022465,2]
[361906627,1747881039717,-440.0,0.00022465,2]
[361906628,1747881039727,-430.0,0.00022465,2]
[361906629,1747881039736,-492.88995588,0.00022465,2]
[361906630,1747881039746,-217.40003238,0.00022465,2]
[361906631,1747881039756,-387.72050869,0.00022465,2]
[361906632,1747881039766,-430.0,0.00022465,2]
[361906633,1747881039776,-435.24014262,0.00022465,2]
[361906634,1747881039788,-476.64344518,0.00022465,2]
[361906635,1747881039798,-192.88,0.00022465,2]
[361906638,1747881039808,-289.16,0.00022465,2]
[361906640,1747881039818,-535.23833414,0.00022465,2]
[361906642,1747881039828,-430.0,0.00022465,2]
[361906644,1747881039838,-190.60622185,0.00022465,2]
[361906646,1747881039847,-430.0,0.00022465,2]
[361906647,1747881039857,-488.59,0.00022465,2]
[361906649,1747881039867,-430.0,0.00022465,2]
[361906651,1747881039877,-212.36,0.00022465,2]
[361906654,1747881039887,-430.0,0.00022465,2]
[361906655,1747881039897,-439.57065357,0.00022465,2]
[361906657,1747881039907,-430.0,0.00022465,2]
[361906659,1747881039919,-442.45,0.00022465,2]
[361906661,1747881039928,-430.0,0.00022465,2]
[361906663,1747881039937,-430.0,0.00022465,2]
[361906665,1747881039947,-561.71104593,0.00022465,2]
[361906667,1747881039957,-430.0,0.00022465,2]
[361906669,1747881039966,-430.0,0.00022465,2]
[361906671,1747881039976,-437.92674852,0.00022465,2]
[361906673,1747881039988,-471.35,0.00022465,2]
[361906675,1747881040000,-443.33724821,0.00022465,2]
[361906677,1747881040010,-430.0,0.00022465,2]
[361906679,1747881040019,-430.0,0.00022465,2]
[361906681,1747881040031,-150.06139361,0.00022465,2]
[361906683,1747881040040,-202.84,0.00022465,2]
[361906685,1747881040049,-430.0,0.00022465,2]
[361906687,1747881040058,-191.98,0.00022465,2]
[361906689,1747881040068,-507.01,0.00022465,2]
[361906691,1747881040078,-430.0,0.00022465,2]
[361906693,1747881040088,-430.0,0.00022465,2]
[361906695,1747881040098,-430.0,0.00022465,2]
[361906697,1747881040107,-318.03,0.00022465,2]
[361906699,1747881040117,-430.0,0.00022465,2]
[361906701,1747881040126,-483.66,0.00022465,2]
[361906703,1747881040136,-430.0,0.00022465,2]
[361906705,1747881040145,-430.0,0.00022465,2]
[361906707,1747881040155,-430.0,0.00022465,2]
[361906709,1747881040164,-430.0,0.00022465,2]
[361906710,1747881040174,-287.28,0.00022465,2]
[361906712,1747881040183,-430.0,0.00022465,2]
[361906714,1747881040192,-430.0,0.00022465,2]
[361906715,1747881040201,-430.0,0.00022465,2]
[361906716,1747881040211,-961.73,0.00022465,2]
[361906718,1747881040221,-430.0,0.00022465,2]
[361906719,1747881040230,-430.0,0.00022465,2]
[361906720,1747881040239,-220.95,0.00022465,2]
[361906721,1747881040248,-1398.21,0.00022465,2]
[361906723,1747881040257,-430.0,0.00022465,2]
[361906724,1747881040267,-1170.48,0.00022465,2]
[361906725,1747881040276,-576.58,0.00022465,2]
[361906727,1747881040287,-430.0,0.00022465,2]
[361906728,1747881040298,-430.0,0.00022465,2]
[361906729,1747881040308,-430.0,0.00022465,2]
[361906731,1747881040318,-430.0,0.00022465,2]
[361906732,1747881040328,-430.0,0.00022465,2]
[361906733,1747881040338,-430.0,0.00022465,2]
[361906734,1747881040348,-430.0,0.00022465,2]
[361906735,1747881040357,-430.0,0.00022465,2]
[361906736,1747881040368,-861.58,0.00022465,2]
[361906737,1747881040378,-430.0,0.00022465,2]
[361906738,1747881040387,-1148.21,0.00022465,2]
[361906739,1747881040397,-385.96225564,0.00022465,2]
[361906740,1747881040407,-430.0,0.00022465,2]
[361906741,1747881040417,-430.0,0.00022465,2]
[361906742,1747881040428,-430.0,0.00022465,2]
[361906743,1747881040437,-430.0,0.00022465,2]
[361906744,1747881040447,-430.0,0.00022465,2]
[361906745,1747881040456,-448.98,0.00022465,2]
[361906746,1747881040465,-430.0,0.00022465,2]
[361906747,1747881040475,-430.0,0.00022465,2]
[361906748,1747881040485,-430.0,0.00022465,2]
[361906749,1747881040494,-430.0,0.00022465,2]
[361906750,1747881040504,-430.0,0.00022465,2]
[361906751,1747881040514,-1371.72,0.00022465,2]
[361906752,1747881040523,-430.0,0.00022465,2]
[361906753,1747881040534,-430.0,0.00022465,2]
[361906754,1747881040543,-430.0,0.00022465,2]
[361906755,1747881040553,-430.0,0.00022465,2]
[361906757,1747881040563,-430.0,0.00022465,2]
[361906758,1747881040572,-430.0,0.00022465,2]
[361906759,1747881040582,-430.0,0.00022465,2]
[361906760,1747881040591,-430.0,0.00022465,2]
[361906761,1747881040600,-430.0,0.00022465,2]
[361906762,1747881040609,-477.76,0.00022465,2]
[361906763,1747881040619,-430.0,0.00022465,2]
[361906764,1747881040631,-516.1,0.00022465,2]
[361906765,1747881040641,-552.25,0.00022465,2]
[361906766,1747881040650,-496.36,0.00022465,2]
[361906767,1747881040660,-430.0,0.00022465,2]
[361906768,1747881040670,-430.0,0.00022465,2]
[361906769,1747881040680,-430.0,0.00022465,2]
[361906770,1747881040689,-430.0,0.00022465,2]
[361906771,1747881040698,-430.0,0.00022465,2]
[361906772,1747881040709,-350.11761635,0.00022465,2]
[361906773,1747881040718,-430.0,0.00022465,2]
[361906774,1747881040728,-430.0,0.00022465,2]
[361906775,1747881040737,-471.4,0.00022465,2]
[361906776,1747881040747,-430.0,0.00022465,2]
[361906777,1747881040756,-538.44,0.00022465,2]
[361906778,1747881040766,-734.23640346,0.0002253,2]
[361906779,1747881040776,-212.4501065,0.00022543,2]
[361906780,1747881040786,-530.80249944,0.00022543,2]
[361906781,1747881040796,-1518.01071928,0.0002259,7]
[361906782,1747881040807,-430.0,0.00022739,2]
[361906783,1747881040817,-430.0,0.00022739,2]
[361906784,1747881040826,-430.0,0.00022739,2]
[361906785,1747881040836,-430.0,0.00022739,2]
[361906786,1747881040845,-386.43,0.00022739,2]
[361906787,1747881040855,-442.45,0.00022739,2]
[361906788,1747881040864,-569.94537655,0.00022739,2]
[361906789,1747881040873,-430.0,0.00022739,2]
[361906790,1747881040882,-471.52,0.00022739,2]
[361906791,1747881040892,-430.0,0.00022739,2]
[361906792,1747881040901,-471.35,0.00022739,2]
[361906793,1747881040910,-430.0,0.00022739,2]
[361906794,1747881040920,-430.0,0.00022739,2]
[361906795,1747881040929,-260.90348989,0.00022739,2]
[361906796,1747881040939,-430.0,0.00022739,2]
[361906797,1747881040948,-430.0,0.00022739,2]
[361906798,1747881040957,-430.0,0.00022739,2]
[361906799,1747881041101,-483.66,0.00022739,2]
[361906800,1747881041111,-430.0,0.00022739,2]
[361906801,1747881041122,-430.0,0.00022739,2]
[361906802,1747881041133,-430.0,0.00022739,2]
[361906803,1747881041143,-430.0,0.00022739,2]
[361906804,1747881041154,-430.0,0.00022739,2]
[361906805,1747881041164,-961.73,0.00022739,2]
[361906806,1747881041176,-573.56,0.00022739,2]
[361906807,1747881041187,-1398.21,0.00022739,2]
[361906808,1747881041198,-430.0,0.00022739,2]
[361906809,1747881041208,-1170.48,0.00022739,2]
[361906810,1747881041217,-439.6169741,0.00022739,2]
[361906811,1747881041226,-430.0,0.00022739,2]
[361906812,1747881041235,-430.0,0.00022739,2]
[361906813,1747881041245,-430.0,0.00022739,2]
[361906814,1747881041255,-430.0,0.00022739,2]
[361906815,1747881041264,-430.0,0.00022739,2]
[361906816,1747881041273,-861.58,0.00022739,2]
[361906817,1747881041282,-430.0,0.00022739,2]
[361906818,1747881041292,-1148.21,0.00022739,2]
[361906819,1747881041301,-430.0,0.00022739,2]
[361906820,1747881041311,-430.0,0.00022739,2]
[361906821,1747881041321,-430.0,0.00022739,2]
[361906822,1747881041330,-347.84,0.00022739,2]
[361906823,1747881041339,-430.0,0.00022739,2]
[361906824,1747881041348,-430.0,0.00022739,2]
[361906825,1747881041358,-395.05970409,0.00022739,2]
[361906826,1747881041367,-430.0,0.00022739,2]
[361906827,1747881041376,-430.0,0.00022739,2]
[361906828,1747881041386,-430.0,0.00022739,2]
[361906829,1747881041395,-1371.72,0.00022739,2]
[361906830,1747881041405,-519.71985779,0.00022739,2]
[361906831,1747881041414,-430.0,0.00022739,2]
[361906832,1747881041424,-430.0,0.00022739,2]
[361906833,1747881041433,-430.0,0.00022739,2]
[361906834,1747881041442,-430.0,0.00022739,2]
[361906835,1747881041451,-430.0,0.00022739,2]
[361906836,1747881041460,-430.0,0.00022739,2]
[361906837,1747881041470,-430.0,0.00022739,2]
[361906838,1747881041480,-477.76,0.00022739,2]